bitfinex/quotes_BTCUSD_20241110
["timestamp","ask_amount","ask_price","bid_price","bid_amount"]
[1731281200334,0.12594221,80339.0,80329.0,0.0011816]
[1731281200335,0.18671231,80337.0,80329.0,0.0011816]
[1731281200503,0.12594221,80339.0,80329.0,0.0011816]
[1731281200707,0.25041521,80339.0,80329.0,0.1256686]
[1731281200879,0.18671231,80338.0,80329.0,0.1256686]
[1731281201081,0.18671231,80338.0,80329.0,0.0011816]
[1731281201260,0.14894221,80337.0,80329.0,0.0011816]
[1731281203788,0.14894221,80337.0,80330.0,0.19230675]
[1731281204028,0.14894221,80337.0,80332.0,0.124482]
[1731281204226,0.14894221,80337.0,80330.0,0.31679175]
[1731281204646,0.14894221,80337.0,80330.0,0.19230675]
[1731281205843,0.14894221,80337.0,80330.0,0.31679175]
[1731281206069,0.14894221,80337.0,80331.0,0.25696986]
[1731281206262,0.14894221,80337.0,80331.0,0.06466604]
[1731281206812,0.14894221,80337.0,80330.0,0.19130382]
[1731281207055,0.14894221,80337.0,80329.0,0.0011816]
[1731281207565,0.14894221,80337.0,80329.0,0.1256676]
[1731281208816,0.14894221,80337.0,80329.0,0.0011816]
[1731281210030,0.18671231,80335.0,80329.0,0.0011816]
[1731281210340,0.023,80333.0,80329.0,0.0011816]
[1731281210450,0.247486,80330.0,80329.0,0.0011816]
[1731281210663,0.37342821,80330.0,80329.0,0.0011816]
[1731281211016,0.24894221,80330.0,80329.0,0.0011816]
[1731281211587,0.37342821,80330.0,80329.0,0.0011816]
[1731281212590,0.37342821,80330.0,80329.0,0.0020226]
[1731281212930,0.24894221,80330.0,80329.0,0.0020226]
[1731281214301,0.37342821,80330.0,80329.0,0.0020226]
[1731281214494,0.26209133,80330.0,80329.0,0.0020226]
[1731281217190,0.001682,80337.0,80329.0,0.0020226]
[1731281217344,0.14894221,80336.0,80329.0,0.0020226]
[1731281217750,0.14894221,80336.0,80330.0,0.124485]
[1731281218387,0.14894221,80336.0,80329.0,0.0020226]
[1731281218767,0.14894221,80336.0,80330.0,0.124486]
[1731281219261,0.14894221,80336.0,80329.0,0.0020226]
[1731281219463,0.14894221,80336.0,80330.0,0.124486]
[1731281219913,0.14894221,80336.0,80329.0,0.0020226]
[1731281221441,0.14894221,80336.0,80329.0,0.1265096]
[1731281222021,3.14894221,80336.0,80329.0,0.1265096]
[1731281222225,0.20971231,80330.0,80329.0,0.0020226]
[1731281222444,0.37342821,80330.0,80329.0,0.0020226]
[1731281226430,0.24894221,80330.0,80329.0,0.0020226]
[1731281227022,0.001682,80335.0,80329.0,0.0020226]
[1731281227023,0.023,80334.0,80329.0,0.0020226]
[1731281227365,0.123,80332.0,80329.0,0.0020226]
[1731281227570,0.123,80330.0,80329.0,0.0019006]
[1731281227729,0.22594221,80330.0,80329.0,0.0019006]
[1731281228065,0.24894221,80330.0,80329.0,0.0019006]
[1731281230560,0.37342821,80330.0,80329.0,0.0019006]
[1731281231511,0.24894221,80330.0,80329.0,0.0019006]
[1731281233263,0.37342821,80330.0,80329.0,0.0019006]
[1731281235235,0.53106513,80330.0,80329.0,0.0019006]
[1731281237880,0.38842821,80330.0,80329.0,0.0019006]
[1731281238621,0.12594221,80330.0,80329.0,0.0019006]
[1731281239957,0.24894221,80330.0,80329.0,0.0019006]
[1731281240175,0.50437042,80330.0,80329.0,0.0019006]
[1731281240723,0.51437042,80330.0,80329.0,0.0019006]
[1731281242254,0.51637042,80330.0,80329.0,0.0019006]
[1731281242787,0.38842821,80330.0,80329.0,0.0019006]
[1731281242990,0.38342821,80330.0,80329.0,0.0019006]
[1731281243247,0.37842821,80330.0,80329.0,0.0019006]
[1731281243377,0.35042821,80330.0,80329.0,0.0019006]
[1731281243737,0.12594221,80330.0,80329.0,0.0019006]
[1731281244078,0.001682,80335.0,80329.0,0.25881466]
[1731281244304,0.31433652,80335.0,80332.0,0.124482]
[1731281244527,0.31433652,80335.0,80330.0,0.124485]
[1731281244967,0.12762421,80335.0,80329.0,0.0019006]
[1731281245191,0.12762421,80335.0,80330.0,0.248972]
[1731281245986,0.12762421,80335.0,80333.0,0.124481]
[1731281246406,0.12762421,80335.0,80332.0,0.124482]
[1731281246804,0.12762421,80335.0,80329.0,0.0019006]
[1731281246926,0.12762421,80335.0,80331.0,0.124484]
[1731281247278,0.12762421,80335.0,80330.0,0.124485]
[1731281247427,0.31433652,80335.0,80329.0,0.0019006]
[1731281248102,0.023,80333.0,80329.0,0.0019006]
[1731281248260,0.12094221,80332.0,80329.0,0.0019006]
[1731281249822,0.023,80334.0,80329.0,0.0019006]
[1731281250026,0.023,80334.0,80333.0,0.124481]
[1731281250252,0.023,80334.0,80331.0,0.124484]
[1731281250475,0.023,80334.0,80329.0,0.0019006]
[1731281250679,0.023,80334.0,80330.0,0.124486]
[1731281250810,0.023,80334.0,80331.0,0.16977086]
[1731281250811,0.12594221,80333.0,80331.0,0.16977086]
[1731281251014,0.001682,80335.0,80332.0,0.124481]
[1731281251217,0.12762421,80335.0,80332.0,0.124482]
[1731281251832,0.023,80332.0,80329.0,0.0019006]
[1731281252057,0.023,80330.0,80329.0,0.0019006]
[1731281252269,0.14894221,80330.0,80329.0,0.0019006]
[1731281253525,0.37342821,80330.0,80329.0,0.0019006]
[1731281254094,0.37842821,80330.0,80329.0,0.0019006]
[1731281256750,0.39172001,80330.0,80329.0,0.0019006]
[1731281259478,0.39372001,80330.0,80329.0,0.0019006]
[1731281259948,0.40372001,80330.0,80329.0,0.0019006]
[1731281260148,0.58835693,80330.0,80329.0,0.0019006]
[1731281260886,0.59035693,80330.0,80329.0,0.0019006]
[1731281261099,0.61562121,80330.0,80329.0,0.0019006]
[1731281261308,0.61362121,80330.0,80329.0,0.0019006]
[1731281263409,0.28898429,80330.0,80329.0,0.0019006]
[1731281263608,0.26372001,80330.0,80329.0,0.0019006]
[1731281263918,0.12594221,80330.0,80329.0,0.0019006]
[1731281265284,0.22594221,80330.0,80329.0,0.0019006]
[1731281265506,0.24894221,80330.0,80329.0,0.0019006]
[1731281265788,0.22594221,80330.0,80329.0,0.0019006]
[1731281266345,0.12594221,80330.0,80329.0,0.0019006]
[1731281266898,0.14894221,80330.0,80329.0,0.0019006]
[1731281267050,0.14894221,80330.0,80329.0,0.13486866]
[1731281267248,0.14894221,80330.0,80329.0,0.01038066]
[1731281268649,0.001682,80332.0,80329.0,0.01038066]
[1731281268783,0.024682,80332.0,80331.0,0.124484]
[1731281269188,0.001682,80332.0,80331.0,0.124484]
[1731281270614,0.001682,80332.0,80330.0,0.0482]
[1731281270812,0.14894221,80331.0,80329.0,0.0019006]
[1731281274581,0.14894221,80331.0,80329.0,0.04772806]
[1731281274991,0.14894221,80331.0,80329.0,0.0019006]
[1731281275811,0.001682,80332.0,80329.0,0.0019006]
[1731281276008,0.001682,80332.0,80331.0,0.124484]
[1731281277383,0.001682,80332.0,80330.0,0.124486]
[1731281277660,0.001682,80332.0,80329.0,0.0019006]
[1731281277971,0.001682,80332.0,80331.0,0.124484]
[1731281278694,0.001682,80332.0,80331.0,0.205084]
[1731281278851,0.001682,80332.0,80331.0,0.39552092]
[1731281279479,0.001682,80332.0,80331.0,0.0806]
[1731281279667,0.001682,80332.0,80331.0,0.205084]
[1731281281809,0.001682,80332.0,80331.0,0.34772092]
[1731281282019,0.001682,80332.0,80331.0,0.50547827]
[1731281282256,0.001682,80332.0,80331.0,0.36284135]
[1731281282484,0.001682,80332.0,80331.0,0.253184]
[1731281282877,0.001682,80332.0,80331.0,0.1287]
[1731281283042,0.15062421,80332.0,80331.0,0.0806]
[1731281285731,0.001682,80332.0,80331.0,0.34772092]
[1731281286096,0.001682,80332.0,80331.0,0.43247937]
[1731281286943,0.001682,80332.0,80331.0,0.34772092]
[1731281288945,0.12762421,80332.0,80331.0,0.0806]
[1731281291713,0.128,80331.0,80329.0,0.0019006]
[1731281291879,0.37988442,80330.0,80329.0,0.0019006]
[1731281292400,0.25394221,80330.0,80329.0,0.0019006]
[1731281292979,0.26394221,80330.0,80329.0,0.0019006]
[1731281294001,0.38842821,80330.0,80329.0,0.0019006]
[1731281295022,0.005,80324.0,80314.0,0.12451]
[1731281295221,0.1,80322.0,80312.0,0.1935196]
[1731281295461,0.1,80322.0,80312.0,0.1935206]
[1731281295462,0.14894221,80321.0,80312.0,0.1935206]
[1731281296191,0.14894221,80321.0,80312.0,0.1935186]
[1731281296400,0.01480334,80332.0,80293.0,0.249086]
[1731281296401,0.123,80312.0,80293.0,0.249086]
[1731281296608,0.1,80310.0,80296.0,0.124539]
[1731281296821,0.1,80310.0,80287.0,0.0455]
[1731281296822,0.1,80308.0,80298.0,0.124535]
[1731281297029,0.023,80312.0,80298.0,0.124534]
[1731281297030,0.1,80306.0,80298.0,0.124534]
[1731281297239,0.028,80312.0,80294.0,0.249084]
[1731281297240,0.105,80304.0,80294.0,0.249084]
[1731281297454,0.1,80302.0,80292.0,0.24909]
[1731281297664,0.1,80302.0,80291.0,0.14263692]
[1731281297665,0.12594221,80301.0,80291.0,0.14263692]
[1731281297889,0.1,80300.0,80287.0,0.0455]
[1731281298098,0.1,80298.0,80290.0,0.202447]
[1731281298303,0.12594221,80297.0,80290.0,0.202447]
[1731281298513,0.1,80296.0,80295.0,0.12454]
[1731281301243,0.1,80296.0,80291.0,0.249093]
[1731281301426,0.1,80296.0,80290.0,0.0779]
[1731281301567,0.1,80296.0,80293.0,0.124543]
[1731281301768,0.1,80296.0,80295.0,0.12454]
[1731281303004,0.023,80310.0,80295.0,0.0702039]
[1731281303199,0.023,80308.0,80307.0,0.124522]
[1731281303776,0.12594221,80309.0,80308.0,0.12452]
[1731281303982,0.01311732,80322.0,80307.0,0.0775]
[1731281304220,0.18671231,80326.0,80325.0,0.124494]
[1731281304381,0.18671231,80326.0,80323.0,0.248992]
[1731281304382,0.31265452,80326.0,80313.0,0.249025]
[1731281304596,0.12594221,80325.0,80319.0,0.249004]
[1731281304840,0.12594221,80325.0,80321.0,0.1245]
[1731281305223,0.12594221,80325.0,80316.0,0.124507]
[1731281305598,0.12594221,80325.0,80311.0,0.326531]
[1731281305795,0.12594221,80325.0,80311.0,0.0775]
[1731281306034,0.124498,80323.0,80311.0,0.202015]
[1731281306287,0.023,80321.0,80311.0,0.0775]
[1731281306464,0.124509,80316.0,80311.0,0.0775]
[1731281306802,0.12594221,80315.0,80311.0,0.0775]
[1731281306979,0.12594221,80315.0,80311.0,0.202015]
[1731281307193,0.12594221,80315.0,80311.0,0.0775]
[1731281307344,0.12594221,80315.0,80314.0,0.124511]
[1731281307710,0.12594221,80315.0,80312.0,0.249028]
[1731281307846,0.12594221,80315.0,80314.0,0.124511]
[1731281309395,0.12594221,80315.0,80311.0,0.078341]
[1731281309616,0.12594221,80315.0,80311.0,0.202856]
[1731281309823,0.12594221,80315.0,80311.0,0.078341]
[1731281310099,0.12594221,80315.0,80312.0,0.124514]
[1731281310299,0.12594221,80315.0,80313.0,0.124512]
[1731281310725,0.12594221,80315.0,80314.0,0.124511]
[1731281311651,0.124488,80329.0,80314.0,0.124511]
[1731281311652,0.001682,80332.0,80324.0,0.124495]
[1731281311882,0.18675231,80325.0,80324.0,0.124495]
[1731281312212,4e-05,80325.0,80324.0,0.124495]
[1731281313219,4e-05,80325.0,80321.0,0.249]
[1731281313417,4e-05,80325.0,80324.0,0.124495]
[1731281316500,0.023,80324.0,80312.0,0.0762]
[1731281316832,0.37497021,80325.0,80312.0,0.0762]
[1731281316833,0.023,80317.0,80312.0,0.0762]
[1731281317057,0.12594221,80316.0,80312.0,0.0762]
[1731281318178,0.12594221,80316.0,80312.0,0.200713]
[1731281318401,0.12594221,80316.0,80313.0,0.124512]
[1731281318590,0.12594221,80316.0,80312.0,0.0762]
[1731281318790,0.12594221,80316.0,80313.0,0.0450594]
[1731281319194,0.12594221,80316.0,80313.0,0.1695704]
[1731281319401,0.12594221,80316.0,80313.0,0.0450594]
[1731281319604,0.12594221,80316.0,80312.0,0.0762]
[1731281319812,0.023,80315.0,80312.0,0.0762]
[1731281320018,0.12594221,80314.0,80312.0,0.0762]
[1731281320926,0.124514,80312.0,80311.0,0.000841]
[1731281321081,0.27345621,80312.0,80311.0,0.000841]
[1731281322454,0.35209779,80312.0,80311.0,0.000841]
[1731281322660,0.27345621,80312.0,80311.0,0.000841]
[1731281323306,0.37345621,80312.0,80311.0,0.000841]
[1731281324518,0.37845621,80312.0,80311.0,0.000841]
[1731281324724,0.01325154,80316.0,80311.0,0.079541]
[1731281325019,0.001682,80318.0,80317.0,0.213206]
[1731281325249,0.001682,80318.0,80317.0,0.41058774]
[1731281325424,4e-05,80325.0,80324.0,0.213195]
[1731281325622,4e-05,80325.0,80324.0,0.35583192]
[1731281325843,4e-05,80325.0,80324.0,0.44241071]
[1731281326045,0.18839431,80335.0,80324.0,0.44241071]
[1731281326046,0.18839431,80335.0,80331.0,0.27712092]
[1731281326616,0.001682,80335.0,80331.0,0.27712092]
[1731281327660,3.0,80336.0,80335.0,0.208178]
[1731281327975,3.0,80336.0,80335.0,0.213178]
[1731281328538,2.49296778,80336.0,80335.0,0.39790955]
[1731281328767,2.38997278,80336.0,80335.0,0.83379886]
[1731281329152,0.18671231,80350.0,80349.0,0.139457]
[1731281329322,0.001684,80369.0,80364.0,0.129433]
[1731281330989,0.001684,80369.0,80368.0,0.124427]
[1731281331214,0.001684,80369.0,80368.0,0.34332667]
[1731281331372,0.081441,80399.0,80373.0,0.129419]
[1731281331904,0.205821,80399.0,80373.0,0.129419]
[1731281332086,0.01337024,80384.0,80373.0,0.129419]
[1731281335992,0.01337024,80384.0,80373.0,0.124419]
[1731281336242,0.023,80373.0,80362.0,0.005]
[1731281336462,0.14894221,80372.0,80371.0,0.124422]
[1731281336659,0.000841,80374.0,80373.0,0.124419]
[1731281341093,0.000841,80374.0,80373.0,0.119419]
[1731281345089,0.14978321,80374.0,80373.0,0.119419]
[1731281345436,0.0696,80373.0,80372.0,0.124421]
[1731281345642,0.19554221,80373.0,80372.0,0.124421]
[1731281346086,0.20120083,80373.0,80372.0,0.124421]
[1731281346296,0.20372914,80373.0,80372.0,0.124421]
[1731281346464,0.00565895,80373.0,80372.0,0.124421]
[1731281346948,0.000841,80374.0,80373.0,0.124419]
[1731281350224,0.000841,80374.0,80371.0,0.124422]
[1731281350363,0.000841,80374.0,80373.0,0.124419]
[1731281351576,0.023,80373.0,80364.0,0.248867]
[1731281351722,0.023,80373.0,80357.0,0.18671231]
[1731281351723,0.023,80371.0,80368.0,0.124427]
[1731281351926,0.12594221,80370.0,80368.0,0.124427]
[1731281352130,0.13159454,80370.0,80368.0,0.124427]
[1731281352341,0.15459454,80370.0,80369.0,0.124426]
[1731281352615,0.23329454,80370.0,80369.0,0.124426]
[1731281354363,0.23329454,80370.0,80366.0,0.37329]
[1731281354616,0.23329454,80370.0,80366.0,0.248861]
[1731281354840,0.23329454,80370.0,80369.0,0.124426]
[1731281356243,0.23329454,80370.0,80360.0,0.005]
[1731281356467,0.23329454,80370.0,80367.0,0.124428]
[1731281356696,0.23329454,80370.0,80368.0,0.124426]
[1731281356865,0.23329454,80370.0,80369.0,0.124426]
[1731281357652,0.023,80369.0,80358.0,0.248886]
[1731281357862,0.0493,80366.0,80361.0,0.124438]
[1731281358065,0.14894221,80365.0,80361.0,0.124438]
[1731281358263,0.15457206,80365.0,80361.0,0.124438]
[1731281358465,0.15457206,80365.0,80361.0,0.248876]
[1731281358678,0.00815907,80365.0,80364.0,0.124433]
[1731281358877,0.00815907,80365.0,80364.0,0.129433]
[1731281359093,0.023,80375.0,80373.0,0.124419]
[1731281359299,0.18671231,80375.0,80373.0,0.124419]
[1731281359503,0.00648143,80374.0,80373.0,0.129419]
[1731281359704,0.18671231,80394.0,80393.0,0.124388]
[1731281359905,0.18671231,80394.0,80393.0,0.129388]
[1731281360109,0.000841,80399.0,80398.0,0.124381]
[1731281363500,0.14978321,80399.0,80398.0,0.124381]
[1731281363701,0.14978321,80399.0,80398.0,0.114381]
[1731281365242,0.14978321,80399.0,80390.0,0.124392]
[1731281365243,0.124382,80398.0,80390.0,0.124392]
[1731281365403,0.248777,80393.0,80382.0,0.248811]
[1731281365601,0.124394,80390.0,80384.0,0.124402]
[1731281365806,0.023,80391.0,80383.0,0.248808]
[1731281365807,0.023,80388.0,80383.0,0.248808]
[1731281366135,0.14894221,80387.0,80386.0,0.124399]
[1731281367014,0.000841,80399.0,80388.0,0.248793]
[1731281367172,0.023,80396.0,80395.0,0.124385]
[1731281367513,0.14894221,80396.0,80395.0,0.124385]
[1731281367861,0.14894221,80396.0,80381.0,0.248815]
[1731281368061,0.023,80394.0,80384.0,0.18671231]
[1731281368259,0.12594221,80395.0,80384.0,0.18671231]
[1731281368260,0.023,80392.0,80389.0,0.124394]
[1731281368610,0.023,80390.0,80387.0,0.124397]
[1731281368816,0.023,80388.0,80387.0,0.124398]
[1731281368992,0.14894221,80388.0,80387.0,0.124398]
[1731281370468,0.14894221,80388.0,80383.0,0.248808]
[1731281370723,0.14894221,80387.0,80386.0,0.124398]
[1731281372944,0.14894221,80387.0,80378.0,0.248824]
[1731281373119,0.124404,80383.0,80377.0,0.124412]
[1731281373328,0.14894221,80382.0,80379.0,0.18671231]
[1731281373525,0.14894221,80382.0,80379.0,0.12441]
[1731281374126,0.14894221,80382.0,80377.0,0.248827]
[1731281374319,0.124414,80377.0,80371.0,0.124422]
[1731281374524,0.27335721,80376.0,80369.0,0.18755231]
[1731281374723,0.27335721,80376.0,80369.0,0.125265]
[1731281374959,0.27335721,80376.0,80370.0,0.124423]
[1731281375110,0.27335721,80376.0,80371.0,0.124422]
[1731281375312,0.27335721,80376.0,80372.0,0.124421]
[1731281375536,0.27335721,80376.0,80369.0,0.00084]
[1731281375744,0.147424,80370.0,80369.0,0.00084]
[1731281376098,0.494741,80370.0,80369.0,0.00084]
[1731281376311,0.594741,80370.0,80369.0,0.00084]
[1731281376975,0.45216621,80370.0,80369.0,0.00084]
[1731281379105,0.46542553,80370.0,80369.0,0.00084]
[1731281379716,0.31800153,80370.0,80369.0,0.00084]
[1731281380072,0.44242553,80370.0,80369.0,0.00084]
[1731281380444,0.31800153,80370.0,80369.0,0.00084]
[1731281380646,0.44242553,80370.0,80369.0,0.00084]
[1731281381069,0.46542553,80370.0,80369.0,0.00084]
[1731281381993,0.56745628,80370.0,80369.0,0.00084]
[1731281382202,0.46542553,80370.0,80369.0,0.00084]
[1731281387992,0.34100153,80370.0,80369.0,0.00084]
[1731281388210,0.16220153,80370.0,80369.0,0.125266]
[1731281388423,0.16220153,80370.0,80369.0,0.00084]
[1731281389374,0.28662553,80370.0,80369.0,0.00084]
[1731281390043,0.16220153,80370.0,80369.0,0.00084]
[1731281390961,0.16220153,80370.0,80369.0,0.125266]
[1731281391203,0.16220153,80370.0,80369.0,0.00084]
[1731281391436,0.28662553,80370.0,80369.0,0.00084]
[1731281391653,0.16220153,80370.0,80369.0,0.00084]
[1731281393415,0.28662553,80370.0,80369.0,0.00084]
[1731281393628,0.16220153,80370.0,80369.0,0.00084]
[1731281394047,0.28662553,80370.0,80369.0,0.00084]
[1731281394728,0.16220153,80370.0,80369.0,0.00084]
[1731281395379,0.28662553,80370.0,80369.0,0.00084]
[1731281399302,0.12594221,80370.0,80369.0,0.00084]
[1731281400366,0.18671231,80375.0,80370.0,0.005]
[1731281400581,0.124424,80370.0,80369.0,0.00084]
[1731281400876,0.25036621,80370.0,80369.0,0.00084]
[1731281401079,0.35036621,80370.0,80369.0,0.00084]
[1731281401307,0.47496621,80370.0,80369.0,0.00084]
[1731281401820,0.49796621,80370.0,80369.0,0.00084]
[1731281407924,0.124458,80348.0,80347.0,0.18671231]
[1731281408163,0.27340021,80348.0,80347.0,0.18671231]
[1731281408651,0.023,80347.0,80340.0,0.129469]
[1731281408825,0.023,80347.0,80341.0,0.17945626]
[1731281409000,0.124459,80348.0,80341.0,0.21759934]
[1731281409166,0.023,80350.0,80341.0,0.17945626]
[1731281409167,0.12594221,80347.0,80341.0,0.17945626]
[1731281409370,0.023,80346.0,80341.0,0.17945626]
[1731281409574,0.124463,80345.0,80341.0,0.17945626]
[1731281409791,0.124465,80344.0,80341.0,0.17945626]
[1731281409999,0.27340521,80346.0,80341.0,0.17945626]
[1731281410239,0.124463,80345.0,80341.0,0.17945626]
[1731281410438,0.14894221,80346.0,80341.0,0.17945626]
[1731281410637,0.27340521,80346.0,80341.0,0.17945626]
[1731281411042,0.14894221,80346.0,80341.0,0.17945626]
[1731281411258,0.16215809,80346.0,80341.0,0.17945626]
[1731281412695,0.28662009,80346.0,80341.0,0.17945626]
[1731281413361,0.16215809,80346.0,80341.0,0.17945626]
[1731281414138,0.16215809,80346.0,80341.0,0.30392426]
[1731281414312,0.16215809,80346.0,80341.0,0.17945626]
[1731281415261,0.16215809,80346.0,80341.0,0.30392526]
[1731281415725,0.1,80361.0,80350.0,0.005]
[1731281415964,0.18671231,80352.0,80350.0,0.005]
[1731281416239,0.373324,80359.0,80350.0,0.005]
[1731281416448,0.124445,80357.0,80350.0,0.005]
[1731281416661,0.12594221,80356.0,80350.0,0.005]
[1731281417076,0.12445,80354.0,80350.0,0.005]
[1731281417282,0.12594221,80356.0,80350.0,0.005]
[1731281418571,0.124457,80349.0,80340.0,0.00584]
[1731281418777,0.14894221,80348.0,80344.0,0.18671231]
[1731281419026,0.14894221,80348.0,80341.0,0.005]
[1731281419269,0.14894221,80348.0,80340.0,0.00084]
[1731281419517,0.147469,80341.0,80340.0,0.00084]
[1731281419726,0.27341121,80341.0,80340.0,0.00084]
[1731281420201,0.14894221,80341.0,80340.0,0.00084]
[1731281420419,0.27341121,80341.0,80340.0,0.00084]
[1731281421073,0.14894221,80341.0,80340.0,0.00084]
[1731281421917,0.12594221,80341.0,80340.0,0.0138717]
[1731281422132,0.12594221,80341.0,80340.0,0.00084]
[1731281422340,0.023,80346.0,80340.0,0.00084]
[1731281422611,0.023,80344.0,80340.0,0.00084]
[1731281422834,0.14894221,80346.0,80345.0,0.124463]
[1731281423050,0.14894221,80346.0,80342.0,0.248935]
[1731281423051,0.14894221,80346.0,80343.0,0.124465]
[1731281423258,0.14894221,80346.0,80345.0,0.124463]
[1731281423692,0.023,80351.0,80345.0,0.005]
[1731281423914,0.12594221,80351.0,80349.0,0.124455]
[1731281424137,0.12594221,80351.0,80346.0,0.005]
[1731281424138,0.12594221,80351.0,80347.0,0.24892]
[1731281424342,0.12594221,80351.0,80348.0,0.124457]
[1731281424760,0.248859,80367.0,80354.0,0.124448]
[1731281424761,0.18671231,80362.0,80354.0,0.124448]
[1731281424971,0.12594221,80361.0,80353.0,0.005]
[1731281425400,0.12594221,80361.0,80354.0,0.005]
[1731281425624,0.43709352,80361.0,80354.0,0.005]
[1731281425845,0.12594221,80361.0,80354.0,0.005]
[1731281426044,0.023,80360.0,80354.0,0.005]
[1731281426251,0.12594221,80359.0,80354.0,0.005]
[1731281426925,0.023,80356.0,80347.0,0.253919]
[1731281427169,0.124439,80361.0,80347.0,0.253919]
[1731281427170,0.023,80354.0,80349.0,0.248911]
[1731281427397,0.12594221,80353.0,80348.0,0.248917]
[1731281427662,0.12594221,80353.0,80347.0,0.005]
[1731281427864,0.12594221,80353.0,80350.0,0.124455]
[1731281428276,0.12594221,80353.0,80351.0,0.124453]
[1731281428480,0.12594221,80353.0,80349.0,0.248914]
[1731281428682,0.12594221,80353.0,80350.0,0.124454]
[1731281429107,0.12594221,80353.0,80351.0,0.124453]
[1731281429337,0.12594221,80353.0,80349.0,0.373369]
[1731281429560,0.12594221,80353.0,80347.0,0.005]
[1731281429777,0.12594221,80353.0,80350.0,0.124454]
[1731281430190,0.12594221,80353.0,80348.0,0.124457]
[1731281430644,0.12594221,80353.0,80349.0,0.124456]
[1731281430855,0.12594221,80353.0,80347.0,0.005]
[1731281431065,0.12594221,80353.0,80349.0,0.124456]
[1731281431292,0.12594221,80353.0,80350.0,0.124455]
[1731281431535,0.023,80354.0,80347.0,0.005]
[1731281431747,0.023,80360.0,80352.0,0.005]
[1731281431951,0.023,80358.0,80353.0,0.12445]
[1731281432157,0.12594221,80357.0,80353.0,0.12445]
[1731281432365,0.12594221,80357.0,80355.0,0.124446]
[1731281432763,0.12594221,80357.0,80354.0,0.124449]
[1731281433524,0.12594221,80357.0,80352.0,0.129451]
[1731281433761,0.12594221,80357.0,80352.0,0.005]
[1731281434347,0.12594221,80357.0,80352.0,0.129452]
[1731281434781,0.12594221,80357.0,80352.0,0.005]
[1731281435258,0.12594221,80357.0,80354.0,0.124448]
[1731281435459,0.12594221,80357.0,80355.0,0.124447]
[1731281435893,0.01331934,80363.0,80361.0,0.005]
[1731281436132,0.4022,80375.0,80361.0,0.005]
[1731281436334,0.12594221,80368.0,80363.0,0.005]
[1731281437823,0.01484014,80369.0,80367.0,0.005]
[1731281438790,0.01484014,80369.0,80367.0,0.129428]
[1731281438997,0.01484014,80369.0,80367.0,0.005]
[1731281440102,0.023,80367.0,80361.0,0.005]
[1731281440300,0.12594221,80366.0,80357.0,0.124444]
[1731281440743,0.12594221,80366.0,80358.0,0.124442]
[1731281440891,0.12594221,80366.0,80361.0,0.005]
[1731281441382,0.12594221,80366.0,80361.0,0.129437]
[1731281441581,0.12594221,80366.0,80361.0,0.005]
[1731281441786,0.12594221,80366.0,80362.0,0.124435]
[1731281442910,0.023,80365.0,80362.0,0.124435]
[1731281443749,0.023,80365.0,80361.0,0.129437]
[1731281444166,0.023,80365.0,80362.0,0.124436]
[1731281444493,0.023,80365.0,80361.0,0.005]
[1731281444696,0.023,80365.0,80363.0,0.124434]
[1731281444851,0.023,80365.0,80361.0,0.005]
[1731281445255,0.023,80365.0,80364.0,0.124433]
[1731281445475,0.023,80365.0,80362.0,0.124436]
[1731281445678,0.023,80365.0,80361.0,0.005]
[1731281445855,0.023,80365.0,80364.0,0.124433]
[1731281446266,0.023,80365.0,80363.0,0.124435]
[1731281446465,0.023,80365.0,80364.0,0.124433]
[1731281448283,0.023,80365.0,80362.0,0.248872]
[1731281448487,0.023,80365.0,80364.0,0.124433]
[1731281449335,0.023,80365.0,80361.0,0.005]
[1731281449506,0.023,80365.0,80362.0,0.248873]
[1731281449805,0.023,80365.0,80362.0,0.373308]
[1731281450011,0.023,80365.0,80362.0,0.124435]
[1731281450665,0.023,80365.0,80363.0,0.124434]
[1731281451009,0.023,80365.0,80364.0,0.124433]
[1731281452174,0.01484014,80369.0,80366.0,0.253859]
[1731281452381,0.20971231,80367.0,80366.0,0.005]
[1731281452577,0.023,80367.0,80366.0,0.005]
[1731281452925,0.023,80368.0,80366.0,0.005]
[1731281453433,0.023,80368.0,80367.0,0.124429]
[1731281453575,0.023,80368.0,80366.0,0.005]
[1731281454396,0.023,80368.0,80367.0,0.124429]
[1731281455015,0.023,80368.0,80367.0,0.129429]
[1731281455627,0.023,80368.0,80367.0,0.005]
[1731281458192,0.023,80368.0,80367.0,0.129429]
[1731281459743,0.023,80368.0,80367.0,0.005]
[1731281460249,0.023,80368.0,80367.0,0.129429]
[1731281460691,0.023,80368.0,80367.0,0.005]
[1731281461368,0.223036,80362.0,80361.0,0.000841]
[1731281461592,0.34897821,80362.0,80361.0,0.000841]
[1731281461811,0.59657756,80362.0,80361.0,0.000841]
[1731281462149,0.65297756,80362.0,80361.0,0.000841]
[1731281462469,0.65097756,80362.0,80361.0,0.000841]
[1731281462709,0.50837821,80362.0,80361.0,0.000841]
[1731281463067,0.49837821,80362.0,80361.0,0.000841]
[1731281465584,0.64097756,80362.0,80361.0,0.000841]
[1731281465788,0.75484812,80362.0,80361.0,0.000841]
[1731281466196,0.49837821,80362.0,80361.0,0.000841]
[1731281468900,0.44897821,80362.0,80361.0,0.000841]
[1731281470702,0.14894221,80362.0,80361.0,0.000841]
[1731281470905,0.023,80367.0,80361.0,0.000841]
[1731281471126,0.023,80367.0,80361.0,0.1507506]
[1731281471127,0.12594221,80366.0,80361.0,0.1507506]
[1731281471335,0.023,80365.0,80361.0,0.000841]
[1731281471540,0.023,80363.0,80361.0,0.000841]
[1731281471714,0.27337721,80363.0,80361.0,0.000841]
[1731281471869,0.27337821,80362.0,80361.0,0.000841]
[1731281472081,0.75934955,80362.0,80361.0,0.000841]
[1731281472275,0.76934955,80362.0,80361.0,0.000841]
[1731281472489,0.77134955,80362.0,80361.0,0.000841]
[1731281472702,0.76934955,80362.0,80361.0,0.000841]
[1731281472952,0.77134955,80362.0,80361.0,0.000841]
[1731281473371,0.80856736,80362.0,80361.0,0.000841]